[Event "44th Chess Olympiad Women 2022"]
[Site "Chennai"]
[Date "2022.08.06"]
[Round "8.2"]
[White "Mkrtchyan, Mariam"]
[Black "Melia, Salome"]
[Result "1/2-1/2"]
[WhiteElo "2285"]
[BlackElo "2384"]
[Annotator "TA"]
[PlyCount "117"]
[EventDate "2022.??.??"]
[TimeControl "60"]

{[%evp 9,117,22,31,23,35,19,22,10,14,1,8,0,0,0,0,0,5,0,0,0,0,0,0,0,0,0,0,-61,
-57,-51,-54,-57,-7,-7,-7,-7,-6,-6,-5,-5,0,0,0,-5,-5,-5,-5,-6,0,-11,-6,-6,-6,-6,
0,0,0,0,0,0,0,0,0,0,0,0,0,0,0,0,0,0,0,0,0,0,0,0,0,0,0,0,0,0,0,0,0,0,0,0,0,0,0,
0,0,0,0,0,0,0,0,0,0,0,0,0,0,0,0,0]} 1. d4 {[%emt 0:00:06]} d5 {[%emt 0:00:45]}
2. c4 {[%emt 0:00:22]} e6 {[%emt 0:00:04]} 3. Nf3 {[%emt 0:00:03]} Nf6 {
[%emt 0:00:06]} 4. g3 {[%emt 0:00:04]} h6 {[%emt 0:00:39]} 5. Bg2 {[%emt 0:00:
00]} Bd6 {[%emt 0:00:15]} 6. O-O {[%emt 0:01:07] E01: Catalan: Early
deviations.} O-O {[%emt 0:00:09]} 7. Nbd2 {[%emt 0:06:40][%cal Yb1d2,Yd2b3,
Yb3d4,Yd4b5]} c5 {[%emt 0:00:49]} 8. cxd5 {[%emt 0:06:20]} exd5 {[%emt 0:00:43]
} 9. dxc5 {[%emt 0:04:39]} Bxc5 {[%emt 0:00:08]} 10. Nb3 {[%emt 0:00:01]} Bb6 {
[%emt 0:00:13]} 11. Nbd4 {[%emt 0:00:55]} Re8 {[%emt 0:00:00]} 12. b3 {[%emt 0:
01:45]} Nc6 {[%emt 0:00:35]} 13. Bb2 {[%emt 0:00:09] [#]} Ne4 $146 {[%emt 0:00:
17]} ({Predecessor:} 13... Qe7 14. e3 Ne4 15. Rc1 Bd7 16. Nxc6 Bxc6 17. Nd4 Bd7
18. Qh5 Nf6 19. Qf3 Qe5 20. h3 Ne4 21. Rc2 Rac8 22. Rfc1 Rxc2 23. Rxc2 Rc8 24.
Qe2 {0-1 (24) Pavlov,M (2385)-Makridis,D (2152) Paracin 2022}) 14. Rc1 {
[%emt 0:01:59]} Qd6 {[%emt 0:00:54]} 15. Nb5 {[%emt 0:12:23]} Qg6 {[%emt 0:02:
21]} 16. Nbd4 {[%emt 0:06:00]} Bg4 {[%emt 0:22:35]} 17. Nxc6 {[%emt 0:11:06]}
bxc6 {[%emt 0:02:34]} 18. Ne5 {[%emt 0:13:29] [#]} (18. Qc2 $11) 18... Rxe5 $1
$15 {[%emt 0:21:30]} 19. Bxe5 {[%emt 0:00:04]} Qh5 $1 {[%emt 0:00:00][%csl Ye2,
Ye5]} 20. Bf3 {[%emt 0:01:00] aiming for Bd4.} Bxf3 {[%emt 0:00:00]} (20...
Qxe5 $15 21. Bxg4 {[#]} Nxg3 $1 22. Rxc6 Nxf1 23. Qxf1 Rd8) 21. exf3 $11 {
[%emt 0:00:05] Hoping for Bd4. Chess con chili. The position is equal.} Nxf2 $1
{[%emt 0:00:14]} 22. Rxf2 {[%emt 0:00:21]} Qxe5 {[%emt 0:00:33]} 23. Rxc6 {
[%emt 0:00:47]} Bxf2+ {[%emt 0:01:36]} 24. Kxf2 $15 {[%emt 0:00:04] Endgame
KQR-KQR} Re8 {[%emt 0:01:48]} 25. Rc2 {[%emt 0:07:19]} Qe3+ {[%emt 0:07:11]}
26. Kg2 {[%emt 0:00:17]} d4 {[%emt 0:02:32]} 27. Rd2 {[%emt 0:00:00] Inhibits
d3.} Rd8 {[%emt 0:00:23]} 28. Qe2 {[%emt 0:03:20] Qxe3 is the strong threat.}
Qg5 {[%emt 0:00:46]} 29. Rd3 {[%emt 0:04:36]} Qb5 {[%emt 0:00:00]} 30. Qd2 {
[%emt 0:02:10]} Qe5 {[%emt 0:01:41]} 31. Kf2 {[%emt 0:02:42]} f5 {[%emt 0:01:
56]} 32. Qe1 {[%emt 0:04:06]} Qd5 {[%emt 0:01:55]} 33. Qd2 {[%emt 0:02:14]} Kh8
{[%emt 0:02:40]} 34. Qc1 {[%emt 0:01:34]} Qd6 {[%emt 0:00:00]} 35. Qf4 {
[%emt 0:00:51]} Qc5 {[%emt 0:01:32]} 36. Qd2 {[%emt 0:00:58]} Rd5 {[%emt 0:05:
38]} 37. Qb2 {[%emt 0:01:08]} Qd6 {[%emt 0:02:15]} 38. Qd2 {[%emt 0:01:20]} Qd7
{[%emt 0:00:37]} 39. Kg2 {[%emt 0:01:21]} Qd6 {[%emt 0:00:00]} 40. b4 {[%emt 0:
02:48]} Qd7 {[%emt 0:00:46]} 41. Qd1 {[%emt 0:31:28]} Qd6 {[%emt 0:03:20]} 42.
a3 {[%emt 0:00:00]} Qb6 {[%emt 0:11:14]} 43. Qd2 {[%emt 0:00:00]} Qa6 {[%emt 0:
02:48]} 44. Rxd4 {[%emt 0:00:00]} Rxd4 {[%emt 0:00:27]} 45. Qxd4 {[%emt 0:00:
00]} Qxa3 $11 {[%emt 0:00:06] KQ-KQ} 46. Qc5 {[%emt 0:00:00]} Qa2+ {[%emt 0:02:
12]} 47. Kg1 {[%emt 0:00:00]} Qb1+ {[%emt 0:02:29]} 48. Kf2 {[%emt 0:00:00]}
Qa2+ {[%emt 0:01:40]} 49. Ke3 {[%emt 0:00:00]} Qxh2 {[%emt 0:01:20]} 50. Qf8+ {
[%emt 0:00:00]} Kh7 {[%emt 0:00:02]} 51. Qxf5+ {[%emt 0:00:00]} Kh8 {[%emt 0:
00:07]} 52. Qf8+ {[%emt 0:00:00]} Kh7 {[%emt 0:00:00]} 53. g4 {[%emt 0:00:00]}
Qe5+ {[%emt 0:01:38]} 54. Kd3 {[%emt 0:00:00]} Qd5+ {[%emt 0:00:33]} 55. Kc3 {
[%emt 0:00:00]} a5 {[%emt 0:01:15]} 56. bxa5 {[%emt 0:00:00]} Qxa5+ {[%emt 0:
00:09]} 57. Kd3 {[%emt 0:00:00]} Qd5+ {[%emt 0:00:00]} 58. Ke3 {[%emt 0:00:00]}
Qe5+ {[%emt 0:00:14]} 59. Kf2 {[%emt 0:00:00] Weighted Error Value: White=0.04
(flawless) /Black=0.02 (flawless)} 1/2-1/2

[Event "44th Chess Olympiad Women 2022"]
[Site "Chennai"]
[Date "2022.08.06"]
[Round "8.3"]
[White "Karavade, Eesha"]
[Black "Kashlinskaya, Alina"]
[Result "1/2-1/2"]
[WhiteElo "2339"]
[BlackElo "2505"]
[Annotator "TA"]
[PlyCount "67"]
[EventDate "2022.??.??"]
[TimeControl "60"]

{[%evp 11,67,17,17,25,28,10,22,0,11,12,10,9,11,16,19,19,16,10,15,12,21,19,18,
16,31,0,0,0,0,0,0,0,0,0,54,58,105,97,93,0,0,0,16,16,14,29,21,17,10,26,12,0,1,0,
0,0,0,0]} 1. d4 {[%emt 0:00:12]} Nf6 {[%emt 0:00:09]} 2. Nf3 {[%emt 0:00:35]}
d5 {[%emt 0:00:08]} 3. Bf4 {[%emt 0:00:42]} c5 {[%emt 0:01:15]} 4. e3 {[%emt 0:
00:00]} Nc6 {[%emt 0:00:16]} 5. Nbd2 {[%emt 0:00:50]} Bg4 {[%emt 0:03:44]} 6.
c3 {[%emt 0:02:26]} e6 {[%emt 0:00:32]} 7. Qb3 {[%emt 0:02:39] D02:1 d4 d5 2
Nf3 sidelines, including 2...Nf6 3 g3 and 2...Nf6 3 Bf4.} Qc8 {[%emt 0:00:27]}
8. h3 {[%emt 0:00:11]} Bh5 {[%emt 0:01:31]} 9. Be2 {[%emt 0:03:35]} Be7 {
[%emt 0:00:30]} 10. dxc5 {[%emt 0:01:44] [#]} O-O $146 {[%emt 0:16:23]} ({
Predecessor:} 10... Bxc5 11. g4 Bg6 12. Nh4 Qd7 13. Nxg6 hxg6 14. g5 Nh5 15.
Bh2 a6 16. O-O-O b5 {1-0 (61) Giri,A (2761)-Tari,A (2654) Stavanger 2022}) 11.
Qa3 {[%emt 0:29:04]} a5 {[%emt 0:09:05]} 12. Bd6 {[%emt 0:12:34]} Bxd6 {
[%emt 0:10:17]} 13. cxd6 {[%emt 0:00:03]} Rd8 {[%emt 0:03:13]} 14. O-O {
[%emt 0:06:59]} Ne4 {[%emt 0:03:59] [#] And now ...Nxd2 would win.} 15. g4 {
[%emt 0:03:34]} Bg6 {[%emt 0:08:00]} 16. Nxe4 {[%emt 0:00:46]} Bxe4 {[%emt 0:
00:00]} 17. Nd2 {[%emt 0:03:38]} Bg6 {[%emt 0:02:00]} 18. c4 {[%emt 0:02:47]}
Nb4 {[%emt 0:01:59] White must now prevent ...Nc2.} 19. Rac1 $36 {[%emt 0:00:
00] Threatens to win with cxd5. White fights for an advantage.} Rxd6 {[%emt 0:
06:07]} 20. cxd5 {[%emt 0:00:41]} Qd8 {[%emt 0:00:18]} 21. Nc4 {[%emt 0:06:44]}
Rxd5 {[%emt 0:00:11] [#] Strongly threatening ...Bd3.} 22. Bf3 {[%emt 0:00:07]}
Rd3 {[%emt 0:05:18]} ({Better is} 22... Rc5 $11 23. Rcd1 (23. Bxb7 Rb8 $15)
23... Qg5) 23. Qa4 $14 {[%emt 0:00:07]} Nd5 {[%emt 0:03:57]} (23... Rb8 $14 24.
Qxa5 (24. Nxa5 Nd5 $14) 24... Qxa5 25. Nxa5 Nxa2) 24. Ne5 $16 {[%emt 0:02:59]}
(24. Qb5 {with more complications.} h5 25. Ne5 Qf6 26. Nxg6 Qxg6 27. Qxb7 Rf8
28. Rc8) 24... Rd2 {[%emt 0:03:54]} 25. Nxg6 {[%emt 0:04:53]} (25. Qb5 $16)
25... hxg6 $11 {[%emt 0:00:07]} 26. Rc2 {[%emt 0:02:46]} Rxc2 {[%emt 0:05:47]}
(26... b5 $5 27. Qe4 Rxc2 28. Qxc2 Rc8 $11) 27. Qxc2 {[%emt 0:00:00]} Rc8 {
[%emt 0:00:10]} 28. Qb3 {[%emt 0:01:52]} b6 {[%emt 0:03:09]} 29. Rd1 {[%emt 0:
01:49] aiming for e4.} Qf6 {[%emt 0:00:16]} 30. Kg2 {[%emt 0:00:00]} Rc5 {
[%emt 0:04:04]} 31. Bxd5 {[%emt 0:01:32] The position is equal.} exd5 {[%emt 0:
00:06]} 32. Rxd5 {[%emt 0:01:40]} Rxd5 {[%emt 0:00:32]} 33. Qxd5 {[%emt 0:00:
03]} Qxb2 {[%emt 0:00:09]} 34. a4 {[%emt 0:00:31] Weighted Error Value:
White=0.07 (flawless) /Black=0.08 (flawless)} 1/2-1/2

[Event "44th Chess Olympiad Women 2022"]
[Site "Chennai"]
[Date "2022.08.06"]
[Round "8.3"]
[White "Kiolbasa, Oliwia"]
[Black "Nandhidhaa, P V.."]
[Result "1-0"]
[WhiteElo "2376"]
[BlackElo "2312"]
[Annotator "TA"]
[PlyCount "96"]
[EventDate "2022.??.??"]
[TimeControl "60"]

{[%evp 10,96,43,47,57,41,33,33,28,39,43,44,56,58,42,43,43,31,68,63,108,99,237,
250,257,125,133,134,130,117,116,118,118,118,125,124,114,78,83,82,124,119,122,
120,125,112,115,92,206,206,212,210,203,202,210,216,206,200,205,185,257,252,265,
256,456,453,454,464,470,462,424,422,673,673,897,897,2823,1363,12839,12839,
12843,12843,12844,12844,12845,12845,12845,12846,12846]} 1. e4 {[%emt 0:00:03]}
d5 {[%emt 0:00:48]} 2. exd5 {[%emt 0:00:44]} Qxd5 {[%emt 0:00:09]} 3. Nc3 {
[%emt 0:02:11]} Qd8 {[%emt 0:00:16]} 4. d4 {[%emt 0:03:59]} Nf6 {[%emt 0:03:57]
} 5. Nf3 {[%emt 0:03:58]} e6 {[%emt 0:01:01]} 6. Bd3 {[%emt 0:09:07]} c5 {
[%emt 0:07:56] B01: Scandinavian Defence.} 7. O-O {[%emt 0:01:35]} cxd4 {
[%emt 0:02:44] [#]} 8. Nxd4 {[%emt 0:03:56][%cal Yc1f4]} Be7 {[%emt 0:00:53]
White is slightly better.} 9. Be3 {[%emt 0:12:22]} O-O {[%emt 0:04:33]} 10. Qf3
{[%emt 0:01:21]} Nbd7 {[%emt 0:05:07]} 11. Qg3 {[%emt 0:02:46] Prevents Ne5.}
Nc5 {[%emt 0:06:46]} 12. Rad1 {[%emt 0:04:34][%cal Ya1d1,Yd1d3,Yd3e3]} (12. Bh6
Nh5 13. Qg4 Nxd3 14. cxd3 f5 $1 15. Qxh5 Qxd4 $11) 12... Nxd3 {[%emt 0:10:11]}
13. Rxd3 $40 {[%emt 0:00:10] [#] White is up to no good.} Qa5 $146 {[%emt 0:05:
49]} ({Predecessor:} 13... Bd6 14. Qf3 Bd7 15. Bg5 Be7 16. Qxb7 Rb8 17. Qxa7
Ra8 18. Qb7 Rb8 19. Qf3 Rxb2 {1-0 (39) Lebedev,A (1659)-Sandocal,U (1765) LSS
email 2016}) 14. Rfd1 {[%emt 0:02:34]} Qh5 {[%emt 0:11:46]} 15. Ndb5 $1 {
[%emt 0:12:44]} Ng4 {[%emt 0:18:21]} (15... b6 $16 {might work better.}) 16.
Nc7 $18 {[%emt 0:08:50]} ({Not} 16. Nxa7 Nxe3 17. Nxc8 (17. Qxe3 $2 Bc5 $19)
17... Raxc8 $11) (16. Bxa7 Rxa7 $1 17. Qh3 (17. Nxa7 Bh4 $17) 17... Qxh3 18.
gxh3 Nxf2 $1 19. Kxf2 Ra6 $17) 16... Bh4 {[%emt 0:00:00]} 17. Qd6 {[%emt 0:02:
31]} (17. Qh3 $1 $18 {and the rest is easy.} e5 18. Rd8 (18. Nxa8 Nxf2 19. Qxh4
Qxh4 $16) 18... Rxd8 19. Rxd8+ Bxd8 20. Qxh5 Bxc7 21. Ne4) 17... Nxe3 $16 {
[%emt 0:05:11]} 18. Rxe3 {[%emt 0:03:19]} Rb8 {[%emt 0:01:35][%cal Yc8d7] [#]}
19. N7d5 $1 {[%emt 0:07:11] Threatens to win with Nf4. White is much more
active. The black rooks are badly placed.} Ra8 {[%emt 0:01:20]} 20. Ne7+ {
[%emt 0:01:14]} Bxe7 {[%emt 0:00:00]} 21. Qxe7 {[%emt 0:00:06] White threatens
Rd8 and mate.} f6 {[%emt 0:01:35]} 22. Rd8 {[%emt 0:07:04][%csl Ge7][%cal
Rd8f8]} Qf7 {[%emt 0:00:09]} 23. Qxf7+ {[%emt 0:04:17]} Kxf7 {[%emt 0:00:07]}
24. Red3 {[%emt 0:00:02]} e5 {[%emt 0:00:00] [#]} 25. Rxf8+ $1 {[%emt 0:01:15]}
Kxf8 {[%emt 0:00:01] Endgame KRB-KRN} 26. Rd8+ {[%emt 0:00:05]} Ke7 {[%emt 0:
00:48]} 27. Rh8 {[%emt 0:00:17]} b6 {[%emt 0:03:28]} 28. Rxh7 {[%emt 0:01:20]}
Bf5 {[%emt 0:00:00]} (28... Kf7 $16) 29. Rxg7+ $18 {[%emt 0:00:11]} Ke6 {
[%emt 0:00:40]} 30. h4 {[%emt 0:02:13]} Bxc2 {[%emt 0:00:35]} 31. Nb5 {[%emt 0:
00:33] Hoping for Nc7+.} Rh8 {[%emt 0:00:29]} 32. Rxa7 {[%emt 0:01:49]} Rxh4 {
[%emt 0:00:39]} 33. Rb7 {[%emt 0:00:44]} Rb4 {[%emt 0:00:47]} 34. Rxb6+ {
[%emt 0:00:06]} Ke7 {[%emt 0:00:00] [#]} (34... Kd7 {keeps fighting.}) 35. Nc3
$1 {[%emt 0:01:54]} Rd4 {[%emt 0:00:19]} (35... Rxb6 36. Nd5+) 36. Rc6 {
[%emt 0:00:31]} Bf5 $2 {[%emt 0:00:00]} (36... f5 {was called for.} 37. b4 Be4
38. Rc7+ Kd8) 37. a4 {[%emt 0:00:00] White is clearly winning.} Bd7 {[%emt 0:
00:27] [#]} 38. Ra6 {[%emt 0:00:00]} Be6 {[%emt 0:00:37]} 39. Rb6 {[%emt 0:00:
26] Prevents Rb4.} f5 {[%emt 0:00:00]} 40. a5 {[%emt 0:00:22]} Rd8 {[%emt 0:00:
24]} (40... Rd6 $142 41. Rb7+ Kf6) 41. a6 {[%emt 0:06:38]} Ra8 {[%emt 0:00:26]}
42. Nb5 {[%emt 0:03:41][%cal Yb6e6] Black must now prevent Rxe6+!} Bc8 {
[%emt 0:02:26]} 43. a7 {[%emt 0:00:00] Strongly threatening Rb8.} Bd7 {[%emt 0:
01:47]} 44. Rb8 {[%emt 0:00:11]} Bc6 {[%emt 0:00:27]} 45. Rxa8 {[%emt 0:00:06]}
Bxa8 {[%emt 0:00:04]} 46. Nc7 {[%emt 0:00:04]} Bb7 {[%emt 0:00:05]} 47. a8=Q {
[%emt 0:00:06]} Bxa8 {[%emt 0:00:00]} 48. Nxa8 {[%emt 0:00:06]} Kd6 {[%emt 0:
00:26] Weighted Error Value: White=0.06 (flawless) /Black=0.35} 1-0

[Event "44th Chess Olympiad Women 2022"]
[Site "Chennai"]
[Date "2022.08.06"]
[Round "8.3"]
[White "Pratyusha, Bodda"]
[Black "Malicka, Maria"]
[Result "0-1"]
[WhiteElo "2310"]
[BlackElo "2393"]
[Annotator "TA"]
[PlyCount "94"]
[EventDate "2022.??.??"]
[TimeControl "60"]

{[%evp 25,94,10,16,0,0,0,0,0,0,0,0,0,0,0,0,0,0,0,0,-8,-8,-101,-72,-72,-60,-122,
-127,-214,-215,-215,-176,-187,-185,-191,-188,-193,-81,-78,-87,-80,-77,-118,
-118,-128,-117,-112,-72,-121,-64,-117,-108,-101,-86,-101,-94,-256,-262,-267,
-270,-367,-363,-454,-439,-800,-754,-952,-943,-934,-927,-802,-763]} 1. d4 {
[%emt 0:00:16]} Nf6 {[%emt 0:00:05]} 2. c4 {[%emt 0:00:18]} g6 {[%emt 0:00:06]}
3. Nc3 {[%emt 0:00:13]} d5 {[%emt 0:00:05]} 4. cxd5 {[%emt 0:01:09]} Nxd5 {
[%emt 0:00:05]} 5. e4 {[%emt 0:00:19]} Nxc3 {[%emt 0:00:03]} 6. bxc3 {[%emt 0:
00:00]} Bg7 {[%emt 0:00:04]} 7. Nf3 {[%emt 0:00:24]} c5 {[%emt 0:00:06]} 8. Be3
{[%emt 0:00:18]} Qa5 {[%emt 0:00:42]} 9. Qd2 {[%emt 0:00:13]} Nc6 {[%emt 0:00:
00]} 10. Rb1 {[%emt 0:00:27]} a6 {[%emt 0:00:07]} 11. Rc1 {[%emt 0:00:11]} cxd4
{[%emt 0:00:13]} 12. cxd4 {[%emt 0:00:18]} Qxd2+ {[%emt 0:00:04]} 13. Kxd2 {
[%emt 0:00:06]} e6 {[%emt 0:00:50]} 14. Bc4 {[%emt 0:06:56] D85: Exchange
Grünfeld: Unusual White 7th moves and lines with 7 Nf3.} O-O {[%emt 0:00:44]}
15. Rhd1 {[%emt 0:00:30]} Bd7 {[%emt 0:01:19]} 16. Ke1 {[%emt 0:06:25] The
position is equal.} Na5 {[%emt 0:10:39] [#]} 17. Bd3 $146 {[%emt 0:04:37]} ({
Predecessor:} 17. Bb3 Rfc8 18. Ne5 Bb5 19. Bf4 Bf8 20. Rxc8 Rxc8 21. Rc1 Bb4+
22. Kd1 Rd8 23. Be3 Nxb3 24. axb3 {½-½ (46) Kristoferitsch,D (2325)-Ragger,M
(2685) Innsbruck 2021}) 17... Rac8 {[%emt 0:01:21] Prevents Rc7.} 18. Rxc8 {
[%emt 0:04:10]} Rxc8 {[%emt 0:02:58]} 19. Rc1 {[%emt 0:00:35]} Rxc1+ {[%emt 0:
00:00]} 20. Bxc1 {[%emt 0:00:07]} Nc6 {[%emt 0:08:20]} 21. Be3 {[%emt 0:00:45]}
b5 {[%emt 0:02:09]} 22. h4 {[%emt 0:05:52]} f5 {[%emt 0:02:26]} 23. e5 {
[%emt 0:05:53]} (23. Bb1 $11) 23... Nb4 $17 {[%emt 0:01:55][%csl Ya2,Yd3]} 24.
Bb1 {[%emt 0:00:28]} Bf8 {[%emt 0:07:12]} 25. Kd1 {[%emt 0:06:10] [#]} ({
Better is} 25. a3 $15 Nd5 26. Bc1) 25... Bc6 $1 {[%emt 0:10:15]} 26. Bc1 {
[%emt 0:18:28]} (26. Ne1 $17 {was called for.}) 26... Bd5 $19 {[%emt 0:07:19]}
27. a3 {[%emt 0:02:38]} Nc6 {[%emt 0:06:53]} 28. Bb2 {[%emt 0:00:55]} Be7 {
[%emt 0:00:07]} 29. Ke2 {[%emt 0:01:56] [#]} Na5 $1 {[%emt 0:03:29]} 30. Bd3 {
[%emt 0:03:44]} h6 {[%emt 0:06:59]} (30... Nc4 $19 {and Black stays clearly on
top.} 31. Bxc4 bxc4) 31. g3 $17 {[%emt 0:01:50]} Nc4 {[%emt 0:00:04]} 32. Bxc4
{[%emt 0:02:46]} Bxc4+ {[%emt 0:00:01] Endgame KBB-KBN} 33. Ke3 {[%emt 0:00:41]
} Kf7 {[%emt 0:02:00]} 34. Ne1 {[%emt 0:03:46]} Ke8 {[%emt 0:00:00]} 35. Nc2 {
[%emt 0:04:02]} Kd7 {[%emt 0:04:53] Black is more active.} 36. Kd2 {[%emt 0:02:
24]} ({White should play} 36. Bc3) 36... Kc6 {[%emt 0:03:55]} ({Black should
try} 36... a5 $17 37. Bc3 Bd8) 37. Bc3 {[%emt 0:01:54]} (37. Kc3 $15) 37... Bd8
{[%emt 0:04:59]} 38. Bb4 {[%emt 0:02:54]} Kd5 {[%emt 0:00:32] White must now
prevent ...Bb3.} 39. Bc5 {[%emt 0:01:01]} Ke4 {[%emt 0:00:41]} 40. Ne3 $2 {
[%emt 0:06:31] Now White is beyond hope.} (40. Nb4 $17) 40... Ba5+ $19 {
[%emt 0:00:16]} 41. Kc2 {[%emt 0:30:20]} Be1 {[%emt 0:06:16] This bishop pair
is nice.} 42. Nd1 {[%emt 0:00:00]} Kf3 {[%emt 0:05:43]} 43. Bb6 {[%emt 0:00:00]
} Bd5 {[%emt 0:01:17] Black is clearly winning.} 44. Ne3 {[%emt 0:00:00]} (44.
Bc5 $142 Bxf2 45. Nxf2 Kxf2 46. Bb4) 44... Be4+ {[%emt 0:04:07]} 45. Kd1 {
[%emt 0:00:00]} Bxf2 {[%emt 0:00:29]} 46. Nf1 {[%emt 0:00:00]} Bd5 {[%emt 0:00:
00]} 47. Bc5 {[%emt 0:00:00]} Kg2 {[%emt 0:00:32] Weighted Error Value:
White=0.44/Black=0.07 (flawless)} 0-1

[Event "44th Chess Olympiad Women 2022"]
[Site "Chennai"]
[Date "2022.08.06"]
[Round "8.3"]
[White "Rudzinska, Michalina"]
[Black "Vishwa Vasnawala"]
[Result "1/2-1/2"]
[WhiteElo "2315"]
[BlackElo "2305"]
[Annotator "RC"]
[PlyCount "106"]
[EventDate "2022.??.??"]
[TimeControl "60"]

1. e4 {[%emt 0:00:02]} e5 {[%emt 0:00:07]} 2. Nf3 {[%emt 0:00:08]} Nc6 {
[%emt 0:00:04]} 3. d4 {[%emt 0:00:09]} exd4 {[%emt 0:00:09]} 4. Nxd4 {[%emt 0:
00:00]} Bc5 {[%emt 0:00:21]} 5. Nb3 {[%emt 0:00:12]} Bb6 {[%emt 0:00:05]} 6.
Nc3 {[%emt 0:00:34]} Nf6 {[%emt 0:00:15]} 7. Qe2 {[%emt 0:00:40]} d6 {[%emt 0:
00:00]} 8. Bg5 {[%emt 0:00:52]} h6 {[%emt 0:00:42]} 9. Bh4 {[%emt 0:02:07]} Be6
{[%emt 0:03:26]} 10. O-O-O {[%emt 0:06:59]} Qe7 {[%emt 0:09:46]} 11. Nd5 {
[%emt 0:11:54]} Bxd5 {[%emt 0:00:24]} 12. exd5 {[%emt 0:00:07]} Qxe2 {[%emt 0:
00:00]} 13. Bxe2 {[%emt 0:00:11]} Ne5 {[%emt 0:00:01]} 14. Bxf6 {[%emt 0:01:24]
} gxf6 {[%emt 0:00:02]} 15. Nd4 {[%emt 0:01:21]} Rg8 {[%emt 0:06:59]} 16. f4 {
[%emt 0:03:21]} Ng4 {[%emt 0:04:32]} 17. Bxg4 {[%emt 0:05:30]} Rxg4 {[%emt 0:
00:00]} 18. Rhe1+ {[%emt 0:00:43]} Kf8 {[%emt 0:04:59]} 19. g3 {[%emt 0:00:42]}
Bxd4 {[%emt 0:05:35]} 20. Rxd4 {[%emt 0:00:08]} f5 {[%emt 0:17:23]} 21. Re3 {
[%emt 0:08:43]} f6 {[%emt 0:02:15]} 22. Re6 {[%emt 0:02:21]} Re8 {[%emt 0:00:
00]} 23. Rxe8+ {[%emt 0:15:49]} Kxe8 {[%emt 0:00:01]} 24. Ra4 {[%emt 0:00:44]}
a6 {[%emt 0:00:18]} 25. Rb4 {[%emt 0:01:11]} b6 {[%emt 0:00:07]} 26. Ra4 {
[%emt 0:02:49]} a5 {[%emt 0:00:02]} 27. b4 {[%emt 0:07:19]} h5 {[%emt 0:14:15]}
28. bxa5 {[%emt 0:00:41]} bxa5 {[%emt 0:00:01]} 29. Rxa5 {[%emt 0:00:22]} h4 {
[%emt 0:00:01]} 30. Ra3 {[%emt 0:00:40]} hxg3 {[%emt 0:00:15]} 31. hxg3 {
[%emt 0:00:07]} Kd7 {[%emt 0:01:35]} 32. Re3 {[%emt 0:12:14]} c6 {[%emt 0:00:
00]} 33. Re6 {[%emt 0:02:51]} Rg6 {[%emt 0:07:17]} 34. c4 {[%emt 0:00:35]} Rxg3
{[%emt 0:00:36]} 35. Rxf6 {[%emt 0:00:16]} Rc3+ {[%emt 0:00:02]} 36. Kb2 {
[%emt 0:00:41]} Rxc4 {[%emt 0:00:01]} 37. Rf7+ {[%emt 0:02:58]} Ke8 {[%emt 0:
00:00]} 38. Rxf5 {[%emt 0:01:02]} cxd5 {[%emt 0:00:02]} 39. Rxd5 {[%emt 0:00:
00]} Rxf4 {[%emt 0:01:04]} 40. Rxd6 {[%emt 0:00:07]} Ke7 {[%emt 0:00:03]} 41.
Rd3 {[%emt 0:32:14]} Rf6 {[%emt 0:07:41]} 42. a4 {[%emt 0:00:00]} Rd6 {[%emt 0:
00:00]} 43. Rc3 {[%emt 0:00:00]} Kd7 {[%emt 0:00:20]} 44. Ka3 {[%emt 0:00:00]}
Rc6 {[%emt 0:00:25]} 45. Rb3 {[%emt 0:00:00]} Rc5 {[%emt 0:06:23]} 46. Kb4 {
[%emt 0:00:00]} Kc6 {[%emt 0:01:03]} 47. Rh3 {[%emt 0:00:00]} Rg5 {[%emt 0:00:
00]} 48. Rh6+ {[%emt 0:00:00]} Kb7 {[%emt 0:00:13]} 49. Rh7+ {[%emt 0:00:00]}
Ka6 {[%emt 0:01:08]} 50. Rc7 {[%emt 0:00:00]} Rg4+ {[%emt 0:00:43]} 51. Rc4 {
[%emt 0:00:00]} Rxc4+ {[%emt 0:00:08]} 52. Kxc4 {[%emt 0:00:00]} Ka5 {[%emt 0:
00:00]} 53. Kc5 {[%emt 0:00:00]} Kxa4 {[%emt 0:00:05]} 1/2-1/2

[Event "44th Chess Olympiad Women 2022"]
[Site "Chennai"]
[Date "2022.08.06"]
[Round "8.4"]
[White "Balajayeva, Khanim"]
[Black "Sandu, Mihaela"]
[Result "1-0"]
[WhiteElo "2344"]
[BlackElo "2297"]
[Annotator "RC"]
[PlyCount "53"]
[EventDate "2022.??.??"]
[TimeControl "60"]

1. e4 {[%emt 0:00:01]} e5 {[%emt 0:00:04]} 2. Nf3 {[%emt 0:00:08]} Nc6 {
[%emt 0:00:05]} 3. Bb5 {[%emt 0:00:11]} a6 {[%emt 0:00:05]} 4. Bxc6 {[%emt 0:
00:00]} dxc6 {[%emt 0:00:09]} 5. O-O {[%emt 0:00:02]} Qe7 {[%emt 0:03:04]} 6.
d4 {[%emt 0:04:43]} exd4 {[%emt 0:03:49]} 7. Nxd4 {[%emt 0:11:12]} Bd7 {
[%emt 0:01:32]} 8. Nc3 {[%emt 0:04:59]} O-O-O {[%emt 0:02:22]} 9. Qe2 {[%emt 0:
00:00]} g6 {[%emt 0:19:47]} 10. Be3 {[%emt 0:08:03]} Bg7 {[%emt 0:01:29]} 11.
Nb3 {[%emt 0:02:56]} f5 {[%emt 0:16:40]} 12. exf5 {[%emt 0:14:56]} Bxf5 {
[%emt 0:05:11]} 13. Rfe1 {[%emt 0:09:43]} Nh6 {[%emt 0:06:30]} 14. h3 {[%emt 0:
00:00]} Nf7 {[%emt 0:09:03]} 15. Nc5 {[%emt 0:02:34]} Nd6 {[%emt 0:09:32]} 16.
N3a4 {[%emt 0:02:24]} Qh4 {[%emt 0:08:05]} 17. Rad1 {[%emt 0:08:59]} Rhe8 {
[%emt 0:02:01]} 18. b3 {[%emt 0:05:44]} Nb5 {[%emt 0:04:56]} 19. Rxd8+ {
[%emt 0:11:35]} Qxd8 {[%emt 0:00:10]} 20. Rd1 {[%emt 0:00:09]} Qe7 {[%emt 0:00:
00]} 21. g4 {[%emt 0:02:39]} Nd4 {[%emt 0:00:28]} 22. Qc4 {[%emt 0:01:13]} Nf3+
{[%emt 0:00:32]} 23. Kf1 {[%emt 0:00:16]} b5 {[%emt 0:01:20]} 24. Qf4 {[%emt 0:
00:00]} bxa4 {[%emt 0:02:59]} 25. Qxa4 {[%emt 0:01:41]} Nd4 {[%emt 0:00:09]}
26. Qxa6+ {[%emt 0:00:22]} Kd8 {[%emt 0:00:03]} 27. Bxd4 {[%emt 0:00:25]} 1-0